[Event "Titled Tuesday Blitz July 4 Late 2023"]
[White "reevecanada"]
[Black "Cooklev, Steven"]
[BlackFideId "2050552"]
[WhiteElo "2532"]
[BlackElo "2380"]
[Result "1/2-1/2"]
[Round "10"]
[TimeControl "180+2"]
[Date "2023.07.04"]
[WhiteClock "0:01:02"]
[BlackClock "0:00:17"]
[Board "75"]

1. e4 {[%clk 0:03:00]}  c5 {[%clk 0:03:00]} 2. Nf3 {[%clk 0:02:59]}  Nc6 {[%clk 0:03:00]} 3. Bb5 {[%clk 0:02:57]}  Nf6 {[%clk 0:03:00]} 4. Nc3 {[%clk 0:02:55]}  Qc7 {[%clk 0:02:56]} 5. Nd5 {[%clk 0:02:53]}  Nxd5 {[%clk 0:02:52]} 6. exd5 {[%clk 0:02:54]}  Nd4 {[%clk 0:02:52]} 7. Nxd4 {[%clk 0:02:53]}  cxd4 {[%clk 0:02:52]} 8. O-O {[%clk 0:02:52]}  Qc5 {[%clk 0:02:51]} 9. Bd3 {[%clk 0:02:52]}  Qxd5 {[%clk 0:02:29]} 10. c3 {[%clk 0:02:50]}  e6 {[%clk 0:02:07]} 11. b3 {[%clk 0:02:46]}  b6 {[%clk 0:01:55]} 12. Bb2 {[%clk 0:02:43]}  Bb7 {[%clk 0:01:55]} 13. f3 {[%clk 0:02:43]}  f5 {[%clk 0:01:52]} 14. cxd4 {[%clk 0:02:40]}  Bc5 {[%clk 0:01:32]} 15. dxc5 {[%clk 0:02:36]}  Qxd3 {[%clk 0:01:32]} 16. cxb6 {[%clk 0:02:20]}  axb6 {[%clk 0:01:28]} 17. Bxg7 {[%clk 0:02:15]}  Rg8 {[%clk 0:01:28]} 18. Bb2 {[%clk 0:02:11]}  Rc8 {[%clk 0:01:02]} 19. Rc1 {[%clk 0:01:28]}  Rxc1 {[%clk 0:01:01]} 20. Qxc1 {[%clk 0:01:27]}  Bxf3 {[%clk 0:00:27]} 21. Rxf3 {[%clk 0:01:16]}  Qxf3 {[%clk 0:00:25]} 22. Qc8+ {[%clk 0:01:14]}  Ke7 {[%clk 0:00:19]} 23. Ba3+ {[%clk 0:01:11]}  Kf6 {[%clk 0:00:18]} 24. Qxg8 {[%clk 0:01:09]}  Qd1+ {[%clk 0:00:18]} 25. Kf2 {[%clk 0:01:08]}  Qxd2+ {[%clk 0:00:18]} 26. Kg3 {[%clk 0:01:04]}  Qe3+ {[%clk 0:00:16]} 27. Kh4 {[%clk 0:01:02]}  Qh6+ {[%clk 0:00:17]} 28. Kg3 {[%clk 0:01:01]}  Qe3+ {[%clk 0:00:17]} 29. Kh4 {[%clk 0:01:01]}  Qh6+ {[%clk 0:00:17]} 30. Kg3 {[%clk 0:01:02]}  Qe3+ {[%clk 0:00:17]} 1/2-1/2


[Site "https://www.chess.com"]

[Event "Titled Tuesday Blitz July 4 Late 2023"]
[White "Womacka, Mathias"]
[Black "Kanyamarala, Trisha"]
[WhiteFideId "4611390"]
[BlackFideId "45004722"]
[WhiteElo "2500"]
[BlackElo "2376"]
[Result "0-1"]
[Round "10"]
[TimeControl "180+2"]
[Date "2023.07.04"]
[WhiteClock "0:00:14"]
[BlackClock "0:00:04"]
[Board "78"]

1. e4 {[%clk 0:03:00]}  c5 {[%clk 0:02:58]} 2. Nf3 {[%clk 0:03:00]}  d6 {[%clk 0:02:58]} 3. d4 {[%clk 0:03:00]}  cxd4 {[%clk 0:02:59]} 4. Nxd4 {[%clk 0:03:01]}  Nf6 {[%clk 0:02:59]} 5. Nc3 {[%clk 0:03:01]}  Nc6 {[%clk 0:02:58]} 6. Be2 {[%clk 0:03:01]}  e6 {[%clk 0:02:51]} 7. Be3 {[%clk 0:02:59]}  Be7 {[%clk 0:02:51]} 8. O-O {[%clk 0:02:59]}  O-O {[%clk 0:02:50]} 9. f4 {[%clk 0:03:00]}  a6 {[%clk 0:02:50]} 10. Kh1 {[%clk 0:03:00]}  Qc7 {[%clk 0:02:51]} 11. Qe1 {[%clk 0:03:00]}  Rb8 {[%clk 0:02:48]} 12. Qg3 {[%clk 0:02:58]}  b5 {[%clk 0:02:47]} 13. e5 {[%clk 0:02:23]}  Ne8 {[%clk 0:02:29]} 14. Bd3 {[%clk 0:02:15]}  f5 {[%clk 0:02:20]} 15. exf6 {[%clk 0:01:55]}  Nxf6 {[%clk 0:02:19]} 16. Rae1 {[%clk 0:01:55]}  b4 {[%clk 0:02:17]} 17. Nce2 {[%clk 0:01:52]}  Na5 {[%clk 0:02:01]} 18. Ng1 {[%clk 0:01:38]}  Nc4 {[%clk 0:01:59]} 19. Bc1 {[%clk 0:01:38]}  e5 {[%clk 0:01:53]} 20. fxe5 {[%clk 0:01:14]}  dxe5 {[%clk 0:01:53]} 21. Nf5 {[%clk 0:01:08]}  Bxf5 {[%clk 0:01:51]} 22. Bxf5 {[%clk 0:01:09]}  Kh8 {[%clk 0:01:39]} 23. Nf3 {[%clk 0:01:02]}  Bd6 {[%clk 0:01:38]} 24. Qh3 {[%clk 0:00:57]}  Rfe8 {[%clk 0:00:52]} 25. Ng5 {[%clk 0:00:56]}  h6 {[%clk 0:00:51]} 26. Ne6 {[%clk 0:00:55]}  Qa7 {[%clk 0:00:36]} 27. Bxh6 {[%clk 0:00:48]}  gxh6 {[%clk 0:00:35]} 28. Qxh6+ {[%clk 0:00:47]}  Nh7 {[%clk 0:00:35]} 29. Bg6 {[%clk 0:00:44]}  Rxe6 {[%clk 0:00:34]} 30. Qh5 {[%clk 0:00:33]}  Qg7 {[%clk 0:00:25]} 31. Bd3 {[%clk 0:00:27]}  Rh6 {[%clk 0:00:21]} 32. Qf5 {[%clk 0:00:20]}  Nb6 {[%clk 0:00:14]} 33. Be4 {[%clk 0:00:18]}  Rg8 {[%clk 0:00:11]} 34. g3 {[%clk 0:00:17]}  Qxg3 {[%clk 0:00:09]} 35. Re2 {[%clk 0:00:17]}  Qg5 {[%clk 0:00:06]} 36. Qxg5 {[%clk 0:00:14]}  Nxg5 {[%clk 0:00:05]} 37. Bd3 {[%clk 0:00:14]}  e4 {[%clk 0:00:05]} 38. Bxe4 {[%clk 0:00:14]}  Nxe4 {[%clk 0:00:04]} 39. Rxe4 {[%clk 0:00:14]}  Rxh2# {[%clk 0:00:04]} 0-1


[Site "https://www.chess.com"]

[Event "Titled Tuesday Blitz July 4 Late 2023"]
[White "Seletsky, Grigory"]
[Black "Liu, Casper"]
[WhiteFideId "14112191"]
[BlackFideId "1454153"]
[WhiteElo "2358"]
[BlackElo "2474"]
[Result "0-1"]
[Round "10"]
[TimeControl "180+2"]
[Date "2023.07.04"]
[WhiteClock "0:00:08"]
[BlackClock "0:00:26"]
[Board "80"]

1. e4 {[%clk 0:02:51]}  b6 {[%clk 0:02:58]} 2. d4 {[%clk 0:02:49]}  Bb7 {[%clk 0:02:58]} 3. f3 {[%clk 0:02:50]}  e6 {[%clk 0:02:57]} 4. Be3 {[%clk 0:02:50]}  c5 {[%clk 0:02:57]} 5. c3 {[%clk 0:02:51]}  cxd4 {[%clk 0:02:57]} 6. cxd4 {[%clk 0:02:50]}  Nc6 {[%clk 0:02:58]} 7. Nc3 {[%clk 0:02:50]}  Rc8 {[%clk 0:02:59]} 8. Qd2 {[%clk 0:02:44]}  Bb4 {[%clk 0:02:55]} 9. Bd3 {[%clk 0:02:44]}  d6 {[%clk 0:02:55]} 10. Nge2 {[%clk 0:02:45]}  Nge7 {[%clk 0:02:55]} 11. O-O {[%clk 0:02:41]}  O-O {[%clk 0:02:55]} 12. Rac1 {[%clk 0:02:39]}  Na5 {[%clk 0:02:54]} 13. Rc2 {[%clk 0:02:37]}  Nc4 {[%clk 0:02:52]} 14. Bxc4 {[%clk 0:02:37]}  Rxc4 {[%clk 0:02:53]} 15. Rfc1 {[%clk 0:02:34]}  Ba6 {[%clk 0:02:44]} 16. a3 {[%clk 0:02:33]}  Bxc3 {[%clk 0:02:44]} 17. Rxc3 {[%clk 0:02:33]}  d5 {[%clk 0:02:40]} 18. Rxc4 {[%clk 0:02:21]}  Bxc4 {[%clk 0:02:39]} 19. e5 {[%clk 0:02:04]}  Nf5 {[%clk 0:02:34]} 20. Ng3 {[%clk 0:02:04]}  Nxe3 {[%clk 0:02:22]} 21. Qxe3 {[%clk 0:02:04]}  Qe7 {[%clk 0:02:17]} 22. f4 {[%clk 0:02:04]}  a5 {[%clk 0:02:14]} 23. f5 {[%clk 0:01:51]}  a4 {[%clk 0:02:11]} 24. f6 {[%clk 0:01:35]}  gxf6 {[%clk 0:02:11]} 25. Nh5 {[%clk 0:01:36]}  fxe5 {[%clk 0:02:08]} 26. dxe5 {[%clk 0:01:35]}  Qc5 {[%clk 0:02:07]} 27. Nf6+ {[%clk 0:01:34]}  Kg7 {[%clk 0:02:06]} 28. Rc3 {[%clk 0:01:25]}  Kg6 {[%clk 0:01:58]} 29. Kf2 {[%clk 0:01:16]}  Qxe3+ {[%clk 0:01:18]} 30. Kxe3 {[%clk 0:01:07]}  h5 {[%clk 0:01:07]} 31. Kf4 {[%clk 0:00:45]}  h4 {[%clk 0:00:38]} 32. Rh3 {[%clk 0:00:31]}  Rh8 {[%clk 0:00:36]} 33. g3 {[%clk 0:00:31]}  Bf1 {[%clk 0:00:31]} 34. Rxh4 {[%clk 0:00:30]}  Rxh4+ {[%clk 0:00:31]} 35. gxh4 {[%clk 0:00:31]}  Be2 {[%clk 0:00:32]} 36. Nd7 {[%clk 0:00:26]}  b5 {[%clk 0:00:31]} 37. Nf6 {[%clk 0:00:18]}  d4 {[%clk 0:00:32]} 38. Ke4 {[%clk 0:00:13]}  d3 {[%clk 0:00:32]} 39. Ke3 {[%clk 0:00:12]}  Kf5 {[%clk 0:00:33]} 40. Nd7 {[%clk 0:00:11]}  Kg4 {[%clk 0:00:30]} 41. Nc5 {[%clk 0:00:11]}  Kxh4 {[%clk 0:00:29]} 42. Nxd3 {[%clk 0:00:11]}  Bxd3 {[%clk 0:00:26]} 43. Kxd3 {[%clk 0:00:11]}  Kh3 {[%clk 0:00:27]} 44. Ke4 {[%clk 0:00:08]}  Kxh2 {[%clk 0:00:27]} 45. Kf4 {[%clk 0:00:08]}  Kg2 {[%clk 0:00:23]} 46. Kg5 {[%clk 0:00:09]}  Kf3 {[%clk 0:00:23]} 47. Kf6 {[%clk 0:00:10]}  Ke4 {[%clk 0:00:24]} 48. Kxf7 {[%clk 0:00:10]}  Kxe5 {[%clk 0:00:25]} 49. Ke7 {[%clk 0:00:10]}  Kd5 {[%clk 0:00:24]} 50. Kd7 {[%clk 0:00:11]}  e5 {[%clk 0:00:25]} 51. Kc7 {[%clk 0:00:11]}  e4 {[%clk 0:00:26]} 52. Kb6 {[%clk 0:00:12]}  Kc4 {[%clk 0:00:25]} 53. Ka5 {[%clk 0:00:08]}  e3 {[%clk 0:00:26]} 0-1


[Site "https://www.chess.com"]

[Event "Titled Tuesday Blitz July 4 Late 2023"]
[White "Korpics, Zsolt"]
[Black "Uzcategui Rodriguez, Alejandro"]
[WhiteFideId "705241"]
[BlackFideId "3903400"]
[WhiteElo "2332"]
[BlackElo "2446"]
[Result "1/2-1/2"]
[Round "10"]
[TimeControl "180+2"]
[Date "2023.07.04"]
[WhiteClock "0:00:14"]
[BlackClock "0:00:13"]
[Board "82"]

1. e4 {[%clk 0:03:00]}  d6 {[%clk 0:02:58]} 2. d4 {[%clk 0:03:00]}  Nf6 {[%clk 0:02:56]} 3. Nc3 {[%clk 0:03:00]}  Nbd7 {[%clk 0:02:55]} 4. g4 {[%clk 0:03:00]}  e5 {[%clk 0:02:55]} 5. Be3 {[%clk 0:02:59]}  Be7 {[%clk 0:02:36]} 6. f3 {[%clk 0:02:55]}  c6 {[%clk 0:02:29]} 7. Qd2 {[%clk 0:02:56]}  Qa5 {[%clk 0:02:28]} 8. O-O-O {[%clk 0:02:53]}  b5 {[%clk 0:02:28]} 9. a3 {[%clk 0:02:44]}  Rb8 {[%clk 0:02:16]} 10. Na2 {[%clk 0:02:17]}  b4 {[%clk 0:02:01]} 11. Nxb4 {[%clk 0:02:13]}  exd4 {[%clk 0:02:01]} 12. Nxc6 {[%clk 0:02:02]}  Qb6 {[%clk 0:01:55]} 13. Nxb8 {[%clk 0:01:15]}  dxe3 {[%clk 0:01:53]} 14. Qc3 {[%clk 0:01:15]}  Qxb8 {[%clk 0:01:50]} 15. Qxe3 {[%clk 0:01:00]}  O-O {[%clk 0:01:38]} 16. Ne2 {[%clk 0:00:56]}  Ne5 {[%clk 0:01:13]} 17. Nd4 {[%clk 0:00:54]}  Be6 {[%clk 0:01:13]} 18. g5 {[%clk 0:00:50]}  Nfd7 {[%clk 0:01:11]} 19. f4 {[%clk 0:00:48]}  Nc4 {[%clk 0:01:03]} 20. Bxc4 {[%clk 0:00:47]}  Bxc4 {[%clk 0:01:04]} 21. Nc6 {[%clk 0:00:46]}  Qe8 {[%clk 0:01:01]} 22. Qd4 {[%clk 0:00:38]}  Bb5 {[%clk 0:00:59]} 23. Nxa7 {[%clk 0:00:35]}  Nc5 {[%clk 0:00:52]} 24. e5 {[%clk 0:00:32]}  Ne6 {[%clk 0:00:49]} 25. Qd5 {[%clk 0:00:28]}  Be2 {[%clk 0:00:40]} 26. exd6 {[%clk 0:00:20]}  Bxd1 {[%clk 0:00:33]} 27. dxe7 {[%clk 0:00:20]}  Qxe7 {[%clk 0:00:34]} 28. Rxd1 {[%clk 0:00:19]}  Qxa7 {[%clk 0:00:32]} 29. f5 {[%clk 0:00:13]}  Nxg5 {[%clk 0:00:32]} 30. f6 {[%clk 0:00:13]}  Qe3+ {[%clk 0:00:10]} 31. Kb1 {[%clk 0:00:13]}  Qf3 {[%clk 0:00:11]} 32. Qd6 {[%clk 0:00:09]}  Qxf6 {[%clk 0:00:10]} 33. Qxf6 {[%clk 0:00:03]}  gxf6 {[%clk 0:00:11]} 34. a4 {[%clk 0:00:03]}  f5 {[%clk 0:00:11]} 35. a5 {[%clk 0:00:04]}  Ra8 {[%clk 0:00:09]} 36. b4 {[%clk 0:00:04]}  f4 {[%clk 0:00:09]} 37. c4 {[%clk 0:00:04]}  f3 {[%clk 0:00:09]} 38. c5 {[%clk 0:00:05]}  Ne4 {[%clk 0:00:10]} 39. Kc2 {[%clk 0:00:05]}  f2 {[%clk 0:00:09]} 40. c6 {[%clk 0:00:03]}  Kg7 {[%clk 0:00:06]} 41. c7 {[%clk 0:00:02]}  Rc8 {[%clk 0:00:06]} 42. Kd3 {[%clk 0:00:02]}  Nf6 {[%clk 0:00:03]} 43. Ke2 {[%clk 0:00:02]}  Rxc7 {[%clk 0:00:02]} 44. Kxf2 {[%clk 0:00:03]}  Rc4 {[%clk 0:00:02]} 45. Rb1 {[%clk 0:00:03]}  Nd5 {[%clk 0:00:02]} 46. a6 {[%clk 0:00:03]}  Rc2+ {[%clk 0:00:02]} 47. Kg3 {[%clk 0:00:03]}  Ra2 {[%clk 0:00:03]} 48. b5 {[%clk 0:00:03]}  Nb6 {[%clk 0:00:03]} 49. Kf4 {[%clk 0:00:03]}  Ra5 {[%clk 0:00:04]} 50. Ke5 {[%clk 0:00:04]}  Nc4+ {[%clk 0:00:03]} 51. Kd5 {[%clk 0:00:04]}  Ne3+ {[%clk 0:00:03]} 52. Ke4 {[%clk 0:00:04]}  Nc2 {[%clk 0:00:03]} 53. b6 {[%clk 0:00:04]}  Na3 {[%clk 0:00:02]} 54. b7 {[%clk 0:00:04]}  Nxb1 {[%clk 0:00:02]} 55. b8=Q {[%clk 0:00:04]}  Rxa6 {[%clk 0:00:03]} 56. Qxb1 {[%clk 0:00:04]}  Rg6 {[%clk 0:00:03]} 57. Kf4 {[%clk 0:00:04]}  Rf6+ {[%clk 0:00:04]} 58. Kg4 {[%clk 0:00:03]}  Rg6+ {[%clk 0:00:04]} 59. Kf3 {[%clk 0:00:04]}  Rf6+ {[%clk 0:00:05]} 60. Kg3 {[%clk 0:00:05]}  Rg6+ {[%clk 0:00:06]} 61. Kf2 {[%clk 0:00:05]}  Rf6+ {[%clk 0:00:07]} 62. Kg2 {[%clk 0:00:06]}  Rg6+ {[%clk 0:00:08]} 63. Kf1 {[%clk 0:00:06]}  Rf6+ {[%clk 0:00:09]} 64. Ke2 {[%clk 0:00:07]}  Rg6 {[%clk 0:00:09]} 65. h4 {[%clk 0:00:06]}  Re6+ {[%clk 0:00:08]} 66. Kd3 {[%clk 0:00:06]}  Rh6 {[%clk 0:00:07]} 67. Qc1 {[%clk 0:00:05]}  Rd6+ {[%clk 0:00:06]} 68. Ke4 {[%clk 0:00:05]}  Re6+ {[%clk 0:00:06]} 69. Kd5 {[%clk 0:00:05]}  Rg6 {[%clk 0:00:05]} 70. Qf4 {[%clk 0:00:05]}  h6 {[%clk 0:00:05]} 71. Ke5 {[%clk 0:00:03]}  Re6+ {[%clk 0:00:04]} 72. Kd5 {[%clk 0:00:03]}  Rg6 {[%clk 0:00:05]} 73. Ke5 {[%clk 0:00:04]}  Re6+ {[%clk 0:00:06]} 74. Kd4 {[%clk 0:00:04]}  Rg6 {[%clk 0:00:05]} 75. Qe5+ {[%clk 0:00:04]}  Kh7 {[%clk 0:00:05]} 76. Qe7 {[%clk 0:00:04]}  Kg7 {[%clk 0:00:05]} 77. Ke4 {[%clk 0:00:04]}  Re6+ {[%clk 0:00:05]} 78. Qxe6 {[%clk 0:00:04]}  fxe6 {[%clk 0:00:06]} 79. Ke5 {[%clk 0:00:04]}  Kf7 {[%clk 0:00:06]} 80. h5 {[%clk 0:00:02]}  Ke7 {[%clk 0:00:07]} 81. Ke4 {[%clk 0:00:02]}  Kf6 {[%clk 0:00:07]} 82. Kf4 {[%clk 0:00:02]}  e5+ {[%clk 0:00:07]} 83. Ke4 {[%clk 0:00:03]}  Ke6 {[%clk 0:00:08]} 84. Ke3 {[%clk 0:00:04]}  Kf5 {[%clk 0:00:09]} 85. Kf3 {[%clk 0:00:04]}  e4+ {[%clk 0:00:09]} 86. Ke3 {[%clk 0:00:05]}  Ke5 {[%clk 0:00:10]} 87. Ke2 {[%clk 0:00:05]}  Kf4 {[%clk 0:00:11]} 88. Kf2 {[%clk 0:00:06]}  Ke5 {[%clk 0:00:06]} 89. Ke3 {[%clk 0:00:06]}  Kd5 {[%clk 0:00:06]} 90. Ke2 {[%clk 0:00:06]}  Kd4 {[%clk 0:00:07]} 91. Kd2 {[%clk 0:00:07]}  Ke5 {[%clk 0:00:07]} 92. Ke2 {[%clk 0:00:08]}  Kf5 {[%clk 0:00:07]} 93. Ke3 {[%clk 0:00:08]}  Kg5 {[%clk 0:00:08]} 94. Kxe4 {[%clk 0:00:08]}  Kxh5 {[%clk 0:00:08]} 95. Kf3 {[%clk 0:00:09]}  Kh4 {[%clk 0:00:09]} 96. Kg2 {[%clk 0:00:10]}  Kg4 {[%clk 0:00:09]} 97. Kh1 {[%clk 0:00:11]}  Kg3 {[%clk 0:00:10]} 98. Kg1 {[%clk 0:00:11]}  h5 {[%clk 0:00:10]} 99. Kh1 {[%clk 0:00:12]}  h4 {[%clk 0:00:11]} 100. Kg1 {[%clk 0:00:13]}  h3 {[%clk 0:00:12]} 101. Kh1 {[%clk 0:00:14]}  h2 {[%clk 0:00:13]} 1/2-1/2


[Site "https://www.chess.com"]

[Event "Titled Tuesday Blitz July 4 Late 2023"]
[White "Omariev, Maksim"]
[Black "Bullen, Alex"]
[WhiteFideId "4193423"]
[BlackFideId "1801627"]
[WhiteElo "2430"]
[BlackElo "2306"]
[Result "0-1"]
[Round "10"]
[TimeControl "180+2"]
[Date "2023.07.04"]
[WhiteClock "0:00:00"]
[BlackClock "0:00:27"]
[Board "83"]

1. e4 {[%clk 0:03:00]}  c6 {[%clk 0:02:57]} 2. Nc3 {[%clk 0:02:59]}  d5 {[%clk 0:02:58]} 3. Nf3 {[%clk 0:03:00]}  dxe4 {[%clk 0:02:58]} 4. Nxe4 {[%clk 0:03:01]}  Nf6 {[%clk 0:02:58]} 5. Ng3 {[%clk 0:03:01]}  h5 {[%clk 0:02:57]} 6. h4 {[%clk 0:02:55]}  Bg4 {[%clk 0:02:55]} 7. Be2 {[%clk 0:02:56]}  e6 {[%clk 0:02:54]} 8. d4 {[%clk 0:02:56]}  Be7 {[%clk 0:02:52]} 9. c3 {[%clk 0:02:54]}  Nbd7 {[%clk 0:02:52]} 10. Ng5 {[%clk 0:02:51]}  Bxe2 {[%clk 0:02:50]} 11. Qxe2 {[%clk 0:02:52]}  Qb6 {[%clk 0:02:40]} 12. a4 {[%clk 0:02:21]}  a5 {[%clk 0:02:36]} 13. O-O {[%clk 0:02:20]}  Qc7 {[%clk 0:02:14]} 14. Re1 {[%clk 0:02:13]}  Nf8 {[%clk 0:01:48]} 15. b3 {[%clk 0:01:42]}  c5 {[%clk 0:01:39]} 16. dxc5 {[%clk 0:01:25]}  Bxc5 {[%clk 0:01:40]} 17. Nf5 {[%clk 0:01:14]}  O-O-O {[%clk 0:01:30]} 18. Ne3 {[%clk 0:00:52]}  Ng6 {[%clk 0:01:15]} 19. g3 {[%clk 0:00:33]}  Ng4 {[%clk 0:01:07]} 20. b4 {[%clk 0:00:25]}  Bd6 {[%clk 0:00:48]} 21. Nc4 {[%clk 0:00:16]}  Bxg3 {[%clk 0:00:41]} 22. Ne4 {[%clk 0:00:06]}  Bxf2+ {[%clk 0:00:34]} 23. Kf1 {[%clk 0:00:00]}  Qh2 {[%clk 0:00:27]} 0-1


[Site "https://www.chess.com"]

[Event "Titled Tuesday Blitz July 4 Late 2023"]
[White "Estrada Nieto, Julian"]
[Black "Gerbelli Neto, Eduardo"]
[WhiteFideId "5101018"]
[BlackFideId "2103281"]
[WhiteElo "2522"]
[BlackElo "2318"]
[Result "1/2-1/2"]
[Round "10"]
[TimeControl "180+2"]
[Date "2023.07.04"]
[WhiteClock "0:00:08"]
[BlackClock "0:00:04"]
[Board "89"]

1. e4 {[%clk 0:03:00]}  e5 {[%clk 0:02:59]} 2. Nf3 {[%clk 0:03:01]}  Nc6 {[%clk 0:02:58]} 3. Bb5 {[%clk 0:03:01]}  a6 {[%clk 0:02:59]} 4. Bxc6 {[%clk 0:03:01]}  dxc6 {[%clk 0:02:59]} 5. O-O {[%clk 0:03:02]}  Bg4 {[%clk 0:02:58]} 6. h3 {[%clk 0:03:01]}  h5 {[%clk 0:02:57]} 7. d3 {[%clk 0:03:01]}  Qf6 {[%clk 0:02:54]} 8. Be3 {[%clk 0:03:01]}  Bxf3 {[%clk 0:02:48]} 9. Qxf3 {[%clk 0:03:01]}  Qxf3 {[%clk 0:02:47]} 10. gxf3 {[%clk 0:03:02]}  Bd6 {[%clk 0:02:47]} 11. Nd2 {[%clk 0:03:01]}  Ne7 {[%clk 0:02:46]} 12. Rfb1 {[%clk 0:03:00]}  a5 {[%clk 0:02:45]} 13. a4 {[%clk 0:02:59]}  f5 {[%clk 0:02:41]} 14. Bg5 {[%clk 0:02:52]}  f4 {[%clk 0:02:18]} 15. Bxe7 {[%clk 0:02:52]}  Kxe7 {[%clk 0:02:18]} 16. Kf1 {[%clk 0:02:49]}  g5 {[%clk 0:02:17]} 17. Ke2 {[%clk 0:02:48]}  Rag8 {[%clk 0:02:11]} 18. Rg1 {[%clk 0:02:47]}  Rg6 {[%clk 0:02:07]} 19. Nc4 {[%clk 0:02:45]}  b6 {[%clk 0:02:06]} 20. c3 {[%clk 0:02:44]}  Rhg8 {[%clk 0:02:02]} 21. Rg2 {[%clk 0:02:33]}  Kf6 {[%clk 0:01:52]} 22. Rag1 {[%clk 0:02:32]}  Bc5 {[%clk 0:01:49]} 23. Rd1 {[%clk 0:02:22]}  g4 {[%clk 0:01:47]} 24. fxg4 {[%clk 0:02:21]}  hxg4 {[%clk 0:01:47]} 25. hxg4 {[%clk 0:02:20]}  Rxg4 {[%clk 0:01:47]} 26. Rxg4 {[%clk 0:02:18]}  Rxg4 {[%clk 0:01:48]} 27. d4 {[%clk 0:02:15]}  exd4 {[%clk 0:01:43]} 28. cxd4 {[%clk 0:02:15]}  Bb4 {[%clk 0:01:43]} 29. Kf3 {[%clk 0:02:15]}  Rh4 {[%clk 0:01:43]} 30. Ne5 {[%clk 0:02:00]}  c5 {[%clk 0:01:27]} 31. Nd3 {[%clk 0:01:41]}  cxd4 {[%clk 0:01:21]} 32. Nxf4 {[%clk 0:01:40]}  Bd6 {[%clk 0:01:11]} 33. Nd3 {[%clk 0:01:34]}  c5 {[%clk 0:01:06]} 34. b3 {[%clk 0:01:34]}  Rh3+ {[%clk 0:01:04]} 35. Ke2 {[%clk 0:01:34]}  Rh2 {[%clk 0:00:59]} 36. Rg1 {[%clk 0:01:32]}  Be5 {[%clk 0:00:39]} 37. Rg4 {[%clk 0:01:21]}  Rh1 {[%clk 0:00:37]} 38. f4 {[%clk 0:01:21]}  Bc7 {[%clk 0:00:37]} 39. f5 {[%clk 0:01:13]}  Rb1 {[%clk 0:00:34]} 40. Rg6+ {[%clk 0:01:13]}  Kf7 {[%clk 0:00:34]} 41. e5 {[%clk 0:01:07]}  Rxb3 {[%clk 0:00:33]} 42. Rc6 {[%clk 0:01:00]}  Bd8 {[%clk 0:00:28]} 43. f6 {[%clk 0:00:49]}  Ra3 {[%clk 0:00:25]} 44. Rc8 {[%clk 0:00:46]}  Bxf6 {[%clk 0:00:25]} 45. exf6 {[%clk 0:00:44]}  Kxf6 {[%clk 0:00:26]} 46. Rc6+ {[%clk 0:00:44]}  Kf5 {[%clk 0:00:26]} 47. Rxb6 {[%clk 0:00:43]}  Rxa4 {[%clk 0:00:26]} 48. Nxc5 {[%clk 0:00:42]}  Ra2+ {[%clk 0:00:25]} 49. Kd3 {[%clk 0:00:42]}  a4 {[%clk 0:00:21]} 50. Kxd4 {[%clk 0:00:38]}  Ra1 {[%clk 0:00:22]} 51. Ra6 {[%clk 0:00:31]}  a3 {[%clk 0:00:22]} 52. Nb3 {[%clk 0:00:29]}  Ra2 {[%clk 0:00:16]} 53. Kc3 {[%clk 0:00:24]}  Kf4 {[%clk 0:00:14]} 54. Nd4 {[%clk 0:00:22]}  Ra1 {[%clk 0:00:11]} 55. Nc2 {[%clk 0:00:22]}  Ra2 {[%clk 0:00:10]} 56. Nxa3 {[%clk 0:00:21]}  Ke4 {[%clk 0:00:08]} 57. Kb3 {[%clk 0:00:21]}  Rh2 {[%clk 0:00:08]} 58. Ra4+ {[%clk 0:00:21]}  Kd5 {[%clk 0:00:08]} 59. Ra5+ {[%clk 0:00:21]}  Ke4 {[%clk 0:00:08]} 60. Nc2 {[%clk 0:00:20]}  Rh3+ {[%clk 0:00:08]} 61. Kb4 {[%clk 0:00:18]}  Rh2 {[%clk 0:00:08]} 62. Rc5 {[%clk 0:00:17]}  Rd2 {[%clk 0:00:08]} 63. Rc4+ {[%clk 0:00:17]}  Ke5 {[%clk 0:00:07]} 64. Kc3 {[%clk 0:00:16]}  Rd8 {[%clk 0:00:08]} 65. Nb4 {[%clk 0:00:16]}  Rh8 {[%clk 0:00:07]} 66. Nd3+ {[%clk 0:00:16]}  Kd5 {[%clk 0:00:07]} 67. Rc5+ {[%clk 0:00:16]}  Kd6 {[%clk 0:00:07]} 68. Rg5 {[%clk 0:00:15]}  Rh3 {[%clk 0:00:07]} 69. Rg6+ {[%clk 0:00:15]}  Ke7 {[%clk 0:00:07]} 70. Kd4 {[%clk 0:00:11]}  Kf7 {[%clk 0:00:07]} 71. Ra6 {[%clk 0:00:11]}  Ke7 {[%clk 0:00:07]} 72. Nf4 {[%clk 0:00:10]}  Rh4 {[%clk 0:00:07]} 73. Ke5 {[%clk 0:00:10]}  Kd7 {[%clk 0:00:08]} 74. Rg6 {[%clk 0:00:08]}  Kc7 {[%clk 0:00:08]} 75. Nd5+ {[%clk 0:00:07]}  Kd7 {[%clk 0:00:08]} 76. Rg7+ {[%clk 0:00:07]}  Kc6 {[%clk 0:00:08]} 77. Rc7+ {[%clk 0:00:06]}  Kb5 {[%clk 0:00:09]} 78. Kd6 {[%clk 0:00:07]}  Rh6+ {[%clk 0:00:08]} 79. Ke5 {[%clk 0:00:07]}  Rh5+ {[%clk 0:00:09]} 80. Ke4 {[%clk 0:00:07]}  Rh4+ {[%clk 0:00:09]} 81. Nf4 {[%clk 0:00:08]}  Kb6 {[%clk 0:00:08]} 82. Rg7 {[%clk 0:00:08]}  Kc6 {[%clk 0:00:08]} 83. Rg3 {[%clk 0:00:09]}  Kc5 {[%clk 0:00:08]} 84. Rd3 {[%clk 0:00:09]}  Kc4 {[%clk 0:00:07]} 85. Rd7 {[%clk 0:00:08]}  Kc5 {[%clk 0:00:08]} 86. Ke5 {[%clk 0:00:07]}  Kc6 {[%clk 0:00:07]} 87. Rd6+ {[%clk 0:00:07]}  Kc7 {[%clk 0:00:08]} 88. Rd4 {[%clk 0:00:08]}  Kc6 {[%clk 0:00:05]} 89. Rc4+ {[%clk 0:00:08]}  Kb5 {[%clk 0:00:04]} 90. Re4 {[%clk 0:00:08]}  Rg4 {[%clk 0:00:04]} 91. Kf5 {[%clk 0:00:08]}  Rh4 {[%clk 0:00:04]} 92. Re5+ {[%clk 0:00:09]}  Kc4 {[%clk 0:00:03]} 93. Ne6 {[%clk 0:00:10]}  Rh5+ {[%clk 0:00:02]} 94. Ng5 {[%clk 0:00:10]}  Rh6 {[%clk 0:00:02]} 95. Re4+ {[%clk 0:00:10]}  Kc5 {[%clk 0:00:02]} 96. Rg4 {[%clk 0:00:10]}  Kc6 {[%clk 0:00:02]} 97. Ne4 {[%clk 0:00:10]}  Rh5+ {[%clk 0:00:02]} 98. Ke6 {[%clk 0:00:10]}  Rh6+ {[%clk 0:00:02]} 99. Nf6 {[%clk 0:00:10]}  Rh3 {[%clk 0:00:02]} 100. Rc4+ {[%clk 0:00:10]}  Kb5 {[%clk 0:00:02]} 101. Rc8 {[%clk 0:00:10]}  Re3+ {[%clk 0:00:03]} 102. Kd5 {[%clk 0:00:10]}  Rd3+ {[%clk 0:00:03]} 103. Ke6 {[%clk 0:00:10]}  Rf3 {[%clk 0:00:03]} 104. Ne4 {[%clk 0:00:09]}  Kb6 {[%clk 0:00:03]} 105. Nd6 {[%clk 0:00:09]}  Re3+ {[%clk 0:00:04]} 106. Kd7 {[%clk 0:00:08]} 1/2-1/2


[Site "https://www.chess.com"]